[Event "MARCEL 1st Div Ch-League 2019"]
[Site "Dhaka"]
[Date "2019.11.19"]
[Round "8.4"]
[White "Sharmin, Samiha Shimmi"]
[Black "Sacchu, Afzal Hossain"]
[Result "0-1"]
[ECO "B22"]
[WhiteElo "1853"]
[BlackElo "1996"]
[Annotator "NA"]
[PlyCount "196"]
[EventDate "2019.11.12"]
[EventCountry "BAN"]
[SourceTitle "playchess.com"]
[Source "ChessBase"]
[SourceQuality "1"]
[TimeControl "5400+30"]

{[%evp 11,176,27,32767,18,64,25,46,31,38,25,31,32767,0,-24,-14,-11,32767,-29,-13,-15,0,-27,-43,-37,-34,-97,-105,-106,-108,-111,-113,-100,-67,-63,-62,-89,-94,-104,-91,32767,32767,32767,32767,32767,32767,32767,32767,-116,-111,-107,-70,-76,-62,-46,-57,-83,-63,-75,-66,-97,-91,-97,-30,-32,-47,-47,-30,-20,-17,-85,-75,-63,-63,-92,-68,-135,-135,-187,-165,-49,-49,-122,-52,-52,-29,-55,-56,32767,32767,32767,32767,-14,0,-47,-47,-35,-50,-50,-51,-49,-45,-43,-47,-14,-43,-50,-43,-48,-45,-40,-16,-14,-15,-17,-22,-43,-36,-46,-47,-49,-14,-46,-47,-46,-25,-25,-45,-25,-20,0,0,-43,-43,-39,-43,-21,-37,-47,32767,32767,-47,-50,32767,32767,32767,32767,32767,32767,32767,32767,-27,-47,-35,32767,32767,32767,32767,32767,32767,32767,32767,32767,32767,32767,32767,32767,-4133]} 1. e4 {[%emt 1:30:30]} c5 {[%emt 0:00:00]} 2. c3 {[%emt 0:00:00]} d5 {[%emt 0:01:36]} 3. exd5 {[%emt 0:00:00]} Qxd5 {[%emt 0:00:46]} 4. d4 {[%emt 0:01:30]} e6 {[%emt 0:01:42]} 5. Nf3 {[%emt 0:00:00]} Nf6 {[%emt 0:01:41]} 6. Na3 {[%emt 0:00:00]} cxd4 {[%emt 0:02:07]} 7. Nb5 {[%emt 0:00:00]} Qd8 {[%emt 0:03:29]} 8. Nbxd4 {[%emt 0:00:00] B22: Sicilian: 2 c3} (8. Qxd4 $16 Nbd7 (8... Qxd4 9. Nfxd4 Na6 10. Bf4 Bc5 11. Be2 O-O 12. O-O Re8 13. Nd6 Bxd6 14. Bxd6 e5 15. Nb5 Ne4 16. Ba3 Bd7 17. f3 {1-0 (32) Liascovich,L (2503)-Varela,G (2402) Villa Martelli 2016}) 9. Nd6+ Bxd6 10. Qxd6) 8... Be7 {[%emt 0:04:19]} 9. Be2 {[%emt 0:00:00]} O-O {[%emt 0:00:26]} 10. O-O {[%emt 0:00:00]} b6 {[%emt 0:07:57]} 11. a3 $146 {[%emt 0:00:00]} ({Predecessor:} 11. Ne5 Bb7 12. Bf3 Qc8 13. Re1 Re8 14. Bf4 Nd5 15. Bg3 Nd7 16. Be4 Nxe5 17. Bxe5 {1-0 (37) Mahdy,K (2395)-Pilaj,H (2362) Vienna 2010}) 11... Bb7 {[%emt 0:01:50]} 12. b4 {[%emt 0:00:00]} Nc6 {[%emt 0:03:13]} 13. Nxc6 {[%emt 0:00:00]} Bxc6 {[%emt 0:00:05]} 14. Bb2 {[%emt 0:00:00]} Qc7 {[%emt 0:05:12]} 15. Qb3 {[%emt 0:00:00]} Rfd8 {[%emt 0:02:41]} 16. Rfd1 {[%emt 0:00:00]} Ng4 {[%emt 0:03:55]} 17. h3 {[%emt 0:00:00]} Ne5 {[%emt 0:02:44]} 18. Nd4 {[%emt 0:00:00]} Bd5 {[%emt 0:02:03]} 19. Qc2 {[%emt 0:00:00]} Nc4 {[%emt 0:01:34]} 20. Bxc4 {[%emt 0:00:00]} Qxc4 {[%emt 0:01:04]} 21. Qe2 {[%emt 0:00:00]} Rdc8 {[%emt 0:05:54]} 22. Qxc4 {[%emt 0:00:00]} Rxc4 {[%emt 0:00:18]} 23. Nc2 {[%emt 0:00:00]} Rc7 {[%emt 0:02:14]} 24. Ne3 {[%emt 0:00:00]} Bb3 {[%emt 0:00:26]} 25. Rd3 {[%emt 0:00:00]} b5 {[%emt 0:01:19]} 26. Rc1 {[%emt 0:00:00]} Rac8 {[%emt 0:00:44]} 27. Nc2 {[%emt 0:00:00]} Bg5 {[%emt 0:01:40]} 28. Ne3 {[%emt 0:00:00]} h5 {[%emt 0:00:58]} 29. g3 {[%emt 0:00:00]} Be7 {[%emt 0:03:55]} 30. Kg2 {[%emt 0:03:00]} Ra8 {[%emt 0:01:18]} 31. c4 {[%emt 0:04:57]} Bxc4 $1 {[%emt 0:00:26]} 32. Nxc4 {[%emt 0:00:15]} bxc4 {[%emt 0:00:47]} 33. Rdd1 {[%emt 0:00:24]} Rac8 {[%emt 0:03:11]} 34. Bc3 {[%emt 0:00:17]} g5 {[%emt 0:04:05]} 35. a4 {[%emt 0:01:07] [#]} a6 $1 {[%emt 0:00:51]} 36. Rb1 {[%emt 0:02:50]} Rb7 {[%emt 0:01:06]} ({Black should play} 36... Kh7 $17) 37. b5 {[%emt 0:00:47]} axb5 {[%emt 0:02:44]} 38. Rxb5 {[%emt 0:00:03]} Rxb5 {[%emt 0:00:56]} 39. axb5 {[%emt 0:03:50]} Rb8 {[%emt 0:00:44]} 40. Rd4 {[%emt 0:00:00]} (40. Rb1 $1 $11) 40... Bf6 {[%emt 0:01:09]} 41. Rxc4 {[%emt 0:00:00]} Bxc3 {[%emt 0:00:27]} 42. Rxc3 {[%emt 0:00:00]} Rxb5 {[%emt 0:00:03]} 43. g4 {[%emt 0:00:00]} (43. Rc4 $15) 43... Kg7 {[%emt 0:00:58]} 44. gxh5 {[%emt 0:00:00]} Kh6 {[%emt 0:01:13]} 45. Rc8 {[%emt 0:00:03]} Kxh5 {[%emt 0:00:48]} 46. Rh8+ $1 {[%emt 0:00:03]} Kg6 {[%emt 0:00:49]} 47. h4 {[%emt 0:00:16]} Kg7 {[%emt 0:00:38]} 48. Rh5 $1 {[%emt 0:00:25]} f6 {[%emt 0:00:38]} 49. f3 {[%emt 0:01:07]} Ra5 {[%emt 0:01:42]} 50. Kf2 {[%emt 0:00:47]} Rf5 {[%emt 0:00:53]} 51. hxg5 {[%emt 0:01:18]} Rxg5 {[%emt 0:00:47]} 52. Rh1 {[%emt 0:00:20]} Kg6 {[%emt 0:00:46]} 53. Rh4 {[%emt 0:00:21]} Kf5 {[%emt 0:00:46]} 54. Ke3 {[%emt 0:00:29]} Rg1 {[%emt 0:01:30]} 55. Rf4+ {[%emt 0:00:27]} Kg5 {[%emt 0:00:17]} 56. Ra4 {[%emt 0:00:24]} Re1+ {[%emt 0:00:50]} 57. Kf2 {[%emt 0:00:17]} Rd1 {[%emt 0:00:19]} 58. Ke3 {[%emt 0:01:06]} Rd5 {[%emt 0:01:01]} 59. Rg4+ {[%emt 0:00:27]} Kf5 {[%emt 0:00:04]} 60. Rf4+ {[%emt 0:00:07]} Ke5 {[%emt 0:00:13]} 61. Re4+ {[%emt 0:00:33]} Kd6 {[%emt 0:00:01]} 62. Ra4 {[%emt 0:00:34]} Rb5 {[%emt 0:00:54]} 63. Ra6+ {[%emt 0:00:57]} Ke5 {[%emt 0:00:09]} 64. Ra4 {[%emt 0:00:21]} Rb3+ {[%emt 0:00:11]} 65. Ke2 {[%emt 0:00:27]} Kf5 {[%emt 0:00:09]} 66. Rc4 {[%emt 0:00:37]} e5 {[%emt 0:00:45]} 67. Ra4 {[%emt 0:00:51]} Rc3 {[%emt 0:01:38]} 68. Rb4 {[%emt 0:00:14]} Ra3 {[%emt 0:00:16]} 69. Rc4 {[%emt 0:00:14]} Ke6 {[%emt 0:00:20]} 70. Rc6+ {[%emt 0:00:13]} Kf5 {[%emt 0:00:01]} 71. Rc4 {[%emt 0:00:07]} Ra2+ {[%emt 0:00:35]} 72. Ke3 {[%emt 0:00:12]} Rh2 {[%emt 0:23:10]} 73. Ra4 {[%emt 0:03:43]} Rg2 {[%emt 0:00:00]} 74. Ra8 {[%emt 0:00:00]} Rg7 {[%emt 0:00:00]} 75. Ra4 {[%emt 0:00:00]} Rb7 {[%emt 0:00:00]} 76. Rc4 {[%emt 0:00:00]} Rb3+ {[%emt 0:00:00]} 77. Ke2 {[%emt 0:00:00]} Rb2+ {[%emt 0:00:00]} 78. Ke3 {[%emt 0:00:00]} Kg5 {[%emt 0:00:00]} 79. Rg4+ {[%emt 0:00:22]} Kf5 {[%emt 0:00:00]} 80. Ra4 {[%emt 0:00:07]} Rb6 {[%emt 0:00:00]} 81. Rc4 {[%emt 0:00:19]} Ke6 {[%emt 0:00:00]} 82. Ra4 {[%emt 0:01:05]} f5 {[%emt 0:00:00]} 83. Rc4 {[%emt 0:01:16]} Rb2 {[%emt 0:00:00]} 84. Rc3 {[%emt 0:01:14]} f4+ {[%emt 0:00:00]} 85. Kd3 {[%emt 0:00:10]} Rf2 {[%emt 0:00:00]} 86. Kc4 {[%emt 0:00:27]} Kf5 {[%emt 0:00:00]} 87. Rd3 {[%emt 0:00:35]} Re2 {[%emt 0:00:00]} 88. Kc3 {[%emt 0:00:31]} Kg5 $19 {[%emt 0:00:00]} 89. Kc4 {[%emt 0:00:43]} Kh4 {[%emt 0:00:00]} 90. Kc3 {[%emt 0:00:44]} Kg3 {[%emt 0:00:00]} 91. Kc4 {[%emt 0:00:21]} Re3 {[%emt 0:00:00]} 92. Rd8 {[%emt 0:00:56]} Kxf3 {[%emt 0:00:00]} 93. Re8 {[%emt 0:00:16]} Ke2 {[%emt 0:00:00]} 94. Ra8 {[%emt 0:00:23]} f3 {[%emt 0:00:00]} 95. Ra2+ {[%emt 0:00:08]} Kf1 {[%emt 0:00:00]} 96. Ra1+ {[%emt 0:00:51]} Kg2 {[%emt 0:00:00]} 97. Ra8 {[%emt 0:00:17]} f2 {[%emt 0:00:00]} 98. Rg8+ {[%emt 0:00:08]} Rg3 {[%emt 0:00:00]} 0-1

[Event "MARCEL 1st Div Ch-League 2019"]
[Site "Dhaka"]
[Date "2019.11.19"]
[Round "8.7"]
[White "Nayem, Haque"]
[Black "Apollosana Mangang, Rajkumar"]
[Result "1/2-1/2"]
[ECO "E93"]
[WhiteElo "1875"]
[BlackElo "2078"]
[Annotator "NA"]
[PlyCount "40"]
[EventDate "2019.11.12"]
[EventCountry "BAN"]
[SourceTitle "playchess.com"]
[Source "ChessBase"]
[SourceQuality "1"]
[TimeControl "5400+30"]

{[%evp 8,40,44,35,36,28,32767,32767,16,32767,32767,22,29,-1,22,13,18,0,33,20,42,32767,32767,25,32767,14,53,18,19,32767,32767,25,32767,37,46]} 1. d4 {[%emt 0:00:00]} Nf6 {[%emt 0:00:04]} 2. c4 {[%emt 0:00:00]} g6 {[%emt 0:01:08]} 3. Nc3 {[%emt 0:00:00]} Bg7 {[%emt 0:00:11]} 4. e4 {[%emt 0:00:00]} d6 {[%emt 0:00:05]} 5. Nf3 {[%emt 0:00:00]} O-O {[%emt 0:00:34]} 6. Bg5 {[%emt 0:00:01]} h6 {[%emt 1:30:58]} 7. Bh4 {[%emt 0:00:37]} Nbd7 {[%emt 0:00:00]} 8. Be2 {[%emt 0:00:00]} e5 {[%emt 0:00:00]} 9. d5 {[%emt 0:00:00]} a5 {[%emt 0:00:00]} 10. Qc2 {[%emt 0:00:00] E93: King's Indian: Classical: Petrosian System with 7...Nbd7} (10. Nd2 Nc5 11. g4 c6 12. f3 Bd7 13. Nb3 Na6 14. O-O a4 15. Nd2 Qa5 16. a3 cxd5 17. cxd5 b5 18. Bd3 Rfc8 19. Na2 {0-1 (54) Yurtseven,M (2381)-Heberla,B (2534) Konya 2019}) 10... Nc5 {[%emt 0:00:00]} 11. Nd2 {[%emt 0:00:00]} Bd7 {[%emt 0:00:00]} 12. Nb3 {[%emt 0:00:00]} b6 $146 {[%emt 0:00:00]} ({Predecessor:} 12... Na4 13. f3 b6 14. Nc1 Nxc3 15. bxc3 Qc8 16. Nd3 Nh7 {1-0 (68) Barski,V (1660)-Depoorter,E (2035) Bethune 2001}) 13. Nxc5 {[%emt 0:00:00]} bxc5 {[%emt 0:00:00]} 14. a4 {[%emt 0:00:00]} Qc8 {[%emt 0:00:00]} 15. Rd1 {[%emt 0:00:00]} Nh7 {[%emt 0:00:00]} 16. f3 {[%emt 0:00:00]} f5 {[%emt 0:00:00]} 17. Bd3 {[%emt 0:05:00]} f4 {[%emt 0:00:00]} 18. Kd2 {[%emt 0:00:00]} Bf6 {[%emt 0:00:00]} 19. Bxf6 {[%emt 0:00:00]} Nxf6 {[%emt 0:02:00]} 20. Kc1 {[%emt 0:00:00]} Rf7 $14 {[%emt 0:02:30]} 1/2-1/2

[Event "MARCEL 1st Div Ch-League 2019"]
[Site "Dhaka"]
[Date "2019.11.19"]
[Round "8.8"]
[White "Hasan Md, Emam"]
[Black "Islam, Sheik Md. Khairul"]
[Result "1-0"]
[ECO "C06"]
[WhiteElo "2046"]
[BlackElo "1966"]
[Annotator "NA"]
[PlyCount "87"]
[EventDate "2019.11.12"]
[EventCountry "BAN"]
[SourceTitle "playchess.com"]
[Source "ChessBase"]
[SourceQuality "1"]
[TimeControl "5400+30"]

{[%evp 8,87,18,32767,32767,32767,32767,32767,10,9,32767,0,0,0,18,0,8,0,45,25,60,70,76,63,56,32767,32767,0,-7,-58,32767,-56,32767,0,-20,-3,32767,32767,32767,32767,86,95,89,87,83,71,120,32767,21,0,0,0,0,0,0,14,14,20,8,15,22,16,26,0,149,151,316,352,356,153,178,152,271,297,281,273,249,276,677,1492,1945,5389]} 1. e4 {[%emt 0:00:00]} e6 {[%emt 0:00:08]} 2. d3 {[%emt 0:00:15]} d5 {[%emt 1:30:52]} 3. Nd2 {[%emt 0:00:03]} Nf6 {[%emt 0:00:00]} 4. Ngf3 {[%emt 0:00:44]} Bb4 {[%emt 0:00:00]} 5. c3 {[%emt 0:00:21]} Be7 {[%emt 0:00:00]} 6. e5 {[%emt 0:04:44]} Nfd7 {[%emt 0:00:00]} 7. d4 {[%emt 0:00:01]} c5 {[%emt 0:00:00]} 8. Bd3 {[%emt 0:00:12]} Nc6 {[%emt 0:00:00]} 9. b3 {[%emt 0:01:18] C06: French Tarrasch: 3...Nf6 4 e5 Nfd7 5 Bd3 main lines} (9. O-O g5 10. Qe2 h5 11. Qe3 Qb6 12. b4 cxd4 13. cxd4 Nxb4 14. Rb1 Qa5 15. Be2 g4 16. Ne1 Nb6 17. Nb3 Qa4 {½-½ (30) Xiong,J (2634)-Van Foreest,J (2629) Wijk aan Zee 2018}) 9... a6 {[%emt 0:00:00]} 10. O-O {[%emt 0:01:48]} b6 {[%emt 0:00:00]} 11. Bb2 $146 {[%emt 0:01:48]} ({Predecessor:} 11. Re1 Bb7 12. Nf1 Nf8 13. Ng3 h5 14. Be3 h4 15. Ne2 Qd7 16. h3 O-O-O 17. Ng5 Bxg5 18. Bxg5 {1-0 (44) Chow,A (2295)-Alliston,R Chicago 1991}) 11... Bb7 {[%emt 0:00:00]} 12. Re1 {[%emt 0:00:36]} Qc7 {[%emt 0:00:00]} 13. Rc1 {[%emt 0:00:50]} Nf8 {[%emt 0:00:00]} 14. c4 {[%emt 0:02:34]} Rd8 {[%emt 0:00:00]} 15. cxd5 {[%emt 0:09:19]} exd5 {[%emt 0:00:00]} 16. dxc5 {[%emt 0:01:24]} bxc5 {[%emt 0:00:00]} 17. Nf1 {[%emt 0:01:46]} Ne6 {[%emt 0:00:00]} 18. Ng3 {[%emt 0:00:18]} ({White should play} 18. Ne3 $11) 18... g6 {[%emt 0:00:00]} 19. Qd2 {[%emt 0:03:19]} Nb4 {[%emt 0:00:00]} 20. Bb1 {[%emt 0:02:25]} Qb6 {[%emt 0:00:00]} 21. Bc3 {[%emt 0:16:28]} d4 {[%emt 0:00:00]} 22. Bxb4 {[%emt 0:00:18]} cxb4 {[%emt 0:00:00]} 23. Be4 {[%emt 0:50:59]} h6 {[%emt 0:00:00]} (23... a5 $11 {keeps the balance.}) 24. Bxb7 {[%emt 0:01:54]} Qxb7 {[%emt 0:00:00]} 25. Ne4 {[%emt 0:00:34]} Kf8 {[%emt 0:00:00]} 26. Rc4 {[%emt 0:00:52]} Kg7 {[%emt 0:00:00]} 27. Nd6 {[%emt 0:01:16]} Bxd6 {[%emt 0:00:00]} 28. exd6 {[%emt 0:00:03]} Rxd6 {[%emt 0:00:00]} 29. Rxb4 {[%emt 0:01:02]} Qa7 {[%emt 0:00:00]} 30. Rc4 {[%emt 0:04:25]} Rhd8 {[%emt 0:14:00]} 31. h4 {[%emt 0:02:46]} Qa8 {[%emt 0:00:00]} 32. Ne5 {[%emt 0:04:58]} Qd5 {[%emt 0:00:00]} 33. Nd3 {[%emt 0:01:55]} Qh5 {[%emt 0:15:30]} 34. Re4 {[%emt 0:08:06]} g5 {[%emt 0:00:00]} 35. Nc5 {[%emt 0:04:00]} Nf4 {[%emt 0:00:00] [#]} (35... Nxc5 $11 36. Rxc5 Qg6) 36. Nb7 $1 {[%emt 0:04:14]} Qg4 {[%emt 0:00:00]} (36... d3 {was necessary.} 37. Nxd8 (37. Nxd6 Rxd6 38. Re3 Rf6 $16) 37... Rxd8) 37. f3 {[%emt 0:00:19]} Qg3 {[%emt 0:00:00]} 38. Nxd6 {[%emt 0:02:39]} (38. Nxd8 $18 {has better winning chances.} Rxd8 39. hxg5 hxg5 40. Rcxd4) 38... Rxd6 {[%emt 0:00:00]} 39. Rcxd4 {[%emt 0:02:28]} Rc6 {[%emt 0:00:00] [#]} (39... Rf6 $142 40. hxg5 hxg5) 40. Rxf4 $1 {[%emt 0:00:56]} gxf4 {[%emt 0:00:00]} 41. Rxf4 {[%emt 0:00:52]} h5 {[%emt 0:00:00]} 42. Qd4+ {[%emt 0:01:08]} Kf8 $2 {[%emt 0:00:00]} (42... Kg8 43. Qe3 Re6) 43. Qh8+ {[%emt 0:00:50] Double Attack} Ke7 {[%emt 0:00:00]} 44. Qe5+ $18 {[%emt 0:00:11]} 1-0

[Event "MARCEL 1st Div Ch-League 2019"]
[Site "Dhaka"]
[Date "2019.11.19"]
[Round "8.10"]
[White "Mohammad, Hasan Mia"]
[Black "Bhuiyan, Golam Mostafa"]
[Result "0-1"]
[ECO "D35"]
[WhiteElo "1743"]
[BlackElo "2060"]
[Annotator "NA"]
[PlyCount "82"]
[EventDate "2019.11.12"]
[EventCountry "BAN"]
[SourceTitle "playchess.com"]
[Source "ChessBase"]
[SourceQuality "1"]
[TimeControl "5400+30"]

{[%evp 14,78,26,32767,71,36,32767,32767,-34,-22,32767,32767,32767,32767,32767,32767,32767,32767,32767,32767,32767,32767,32767,-85,-80,32767,-156,-168,-202,-221,32767,32767,32767,32767,32767,32767,32767,32767,32767,-55,-62,-137,-68,32767,32767,-101,-16,-266,-270,-298,-300,-321,39,15,17,-137,-151,-139,-128,32767,-162,-664,-764,-1005,-1075,-1063,-1118]} 1. d4 {[%emt 0:00:00]} d5 {[%emt 0:00:51]} 2. c4 {[%emt 0:00:00]} e6 {[%emt 0:01:25]} 3. cxd5 {[%emt 0:00:17]} exd5 {[%emt 0:00:59]} 4. Nc3 {[%emt 0:00:11]} Nf6 {[%emt 0:00:01]} 5. Bg5 {[%emt 0:00:16]} Be7 {[%emt 0:00:08]} 6. Qc2 {[%emt 0:00:10]} h6 {[%emt 0:00:12]} 7. Bh4 {[%emt 0:00:21] D35: Queen's Gambit Declined: Exchange Variation} Nc6 {[%emt 0:00:09]} (7... Nbd7 8. e3 c6 9. Bd3 Nh5 10. Bxe7 Qxe7 11. O-O-O Nb6 12. h3 Nf6 13. Nf3 Be6 14. Kb1 O-O-O 15. Ne5 Nfd7 16. Nf3 Nf6 17. Rhe1 Rhe8 {1-0 (48) Miron,L (2490)-Borsuk,Y (2324) Agneaux 2015}) 8. e3 {[%emt 0:00:21]} Nb4 {[%emt 0:00:33]} 9. Qb1 {[%emt 0:01:03]} g6 $146 {[%emt 0:00:13]} ({Predecessor:} 9... Bg4 10. a3 Nc6 11. f3 Be6 12. Bd3 Qd7 13. Nge2 Nh5 14. Bf2 Nf6 {1-0 (25) Briem,B (1464)-Ragnarsson,R (1014) Reykjavik 2018}) 10. Bd3 {[%emt 0:01:01]} Nxd3+ {[%emt 0:06:54]} 11. Qxd3 {[%emt 0:00:14]} c6 {[%emt 0:00:07]} 12. Nge2 {[%emt 0:00:47]} Bf5 {[%emt 0:00:19]} 13. Qd2 {[%emt 0:00:27]} g5 {[%emt 0:00:13]} 14. Bg3 {[%emt 0:00:13]} h5 {[%emt 0:01:13]} 15. Be5 {[%emt 0:01:21]} Rg8 {[%emt 0:00:08]} 16. h3 {[%emt 0:00:43]} Bb4 {[%emt 0:00:50]} 17. f3 {[%emt 0:02:21]} Qe7 {[%emt 0:00:54]} 18. g4 {[%emt 0:00:42]} (18. a3 $11 Ba5 19. g4) 18... Bg6 {[%emt 0:00:38]} 19. Nc1 {[%emt 0:00:56]} Nd7 {[%emt 0:01:11]} 20. Bg3 {[%emt 0:00:48]} Nb6 {[%emt 0:00:07]} 21. b3 {[%emt 0:01:12]} Qf6 {[%emt 0:11:34]} 22. O-O {[%emt 0:01:05]} O-O-O {[%emt 0:01:33]} 23. Nd3 {[%emt 0:01:15]} Bxd3 {[%emt 0:00:44]} 24. Qxd3 {[%emt 0:03:23]} Bd6 {[%emt 0:00:50]} 25. Kg2 {[%emt 0:00:19]} Rge8 {[%emt 0:04:04]} 26. Rac1 {[%emt 0:00:58]} Kb8 {[%emt 0:00:29]} 27. Rfd1 {[%emt 0:00:34]} (27. Bxd6+ $15 Qxd6 28. gxh5) 27... Re7 {[%emt 0:01:19]} (27... Bxg3 $17 28. Kxg3 h4+ 29. Kg2 Qd6) 28. Bxd6+ {[%emt 0:01:18]} Qxd6 {[%emt 0:00:06]} 29. e4 {[%emt 0:00:25]} f6 {[%emt 0:01:20]} (29... Rh8 $17 30. e5 Qh6) 30. Ne2 $2 {[%emt 0:00:44]} (30. gxh5 $11 {and White has nothing to worry.} Qf4 31. exd5) 30... Rde8 {[%emt 0:01:06]} ({Less strong is} 30... hxg4 31. hxg4 Qe6 32. Nc3 $17) 31. Ng3 {[%emt 0:00:20]} dxe4 {[%emt 0:01:04]} 32. fxe4 {[%emt 0:00:39] [#]} Qd7 $2 {[%emt 0:22:38]} ({Better is} 32... Nd5 $1 $19 {[%cal Rd5f4][%mdl 512]} 33. Kh1 (33. exd5 Re3) 33... Nf4) 33. Nxh5 {[%emt 0:04:23]} Rxe4 {[%emt 0:00:05]} 34. Nxf6 {[%emt 0:03:59]} (34. Qg3+ $11 Qc7 35. Qxc7+ Kxc7 36. Nxf6 Re2+ {[%mdl 64] Double Attack} 37. Kf1) 34... Re2+ {[%emt 0:00:19] Double Attack} 35. Kf1 {[%emt 0:03:21]} Qf7 {[%emt 0:01:29]} 36. Qf5 {[%emt 0:00:50]} R8e6 {[%emt 0:00:57]} 37. Nh7 $2 {[%emt 0:03:55]} (37. Nh5 $17 Qe7 38. Qc5) 37... Qc7 {[%emt 0:00:39]} 38. Re1 {[%emt 0:10:59]} Qh2 {[%emt 0:16:32]} 39. Qf3 $19 {[%emt 0:01:14]} R6e3 $1 {[%emt 0:05:22]} 40. Qf8+ {[%emt 0:08:37]} Nc8 {[%emt 0:00:09]} 41. Rxe2 {[%emt 0:00:30]} Qxe2+ {[%emt 0:00:07]} 0-1

[Event "MARCEL 1st Div Ch-League 2019"]
[Site "Dhaka"]
[Date "2019.11.19"]
[Round "8.11"]
[White "Islam, Mohammad Aminul"]
[Black "Kyum, Ahmed"]
[Result "1-0"]
[ECO "B38"]
[WhiteElo "2078"]
[BlackElo "1909"]
[Annotator "NA"]
[PlyCount "69"]
[EventDate "2019.11.12"]
[EventCountry "BAN"]
[SourceTitle "playchess.com"]
[Source "ChessBase"]
[SourceQuality "1"]
[TimeControl "5400+30"]

{[%evp 8,69,14,18,32767,35,46,38,47,51,45,32767,52,45,32767,32767,32767,32767,32767,68,32767,55,63,54,55,59,67,66,56,29,32767,31,68,51,104,32767,32767,32767,32767,32767,119,104,147,135,175,74,237,249,233,222,405,311,494,554,606,725,642,724,640,814,861,673,627,729]} 1. c4 {[%emt 1:30:30]} Nf6 {[%emt 1:30:30]} 2. Nc3 {[%emt 0:00:30]} c5 {[%emt 0:00:30]} 3. Nf3 {[%emt 0:00:30]} Nc6 {[%emt 0:00:30]} 4. d4 {[%emt 0:00:30]} cxd4 {[%emt 0:00:30]} 5. Nxd4 {[%emt 0:00:30]} d6 {[%emt 0:00:30]} 6. e4 {[%emt 0:00:30]} g6 {[%emt 0:00:30]} 7. Be2 {[%emt 0:00:30]} Bg7 {[%emt 0:00:30]} 8. Be3 {[%emt 0:00:30]} Bd7 {[%emt 0:00:30]} 9. O-O {[%emt 0:00:30]} O-O {[%emt 0:00:30]} 10. Rc1 {[%emt 0:00:30]} Rc8 {[%emt 0:00:30]} 11. f3 {[%emt 0:00:30]} b6 {[%emt 0:00:30]} 12. Qd2 {[%emt 0:00:30]} Nxd4 {[%emt 0:00:30]} 13. Bxd4 {[%emt 0:00:30]} Bc6 {[%emt 0:00:30] B38: Sicilian: Maroczy Bind with 5...Bg7 and 7...0-0} 14. Rfd1 {[%emt 0:00:30]} Ne8 {[%emt 0:00:30]} (14... Qd7 15. b4 Rfd8 16. a4 Bxa4 17. Nxa4 Qxa4 18. b5 a5 19. Bxb6 Nd7 20. Bxd8 Rxd8 21. c5 dxc5 22. Rxc5 Nxc5 23. Qxd8+ {1-0 (44) Degenhard,S (2189)-Wild,R (2190) Wuerttemberg 2017}) 15. b4 $146 {[%emt 0:00:30]} ({Predecessor:} 15. Nd5 e5 16. Bf2 Bd7 17. b4 f5 18. c5 dxc5 19. bxc5 b5 20. Ne7+ Qxe7 21. Qxd7 Qxd7 22. Rxd7 {½-½ (40) Mueller,A (1688)-Goertz,H (1968) Bayerisch Eisenstein 2018}) 15... Bxd4+ {[%emt 0:00:30]} 16. Qxd4 {[%emt 0:00:30]} Ng7 {[%emt 0:00:30]} 17. Qe3 {[%emt 0:00:30]} Qc7 {[%emt 0:00:30]} 18. Nd5 {[%emt 0:00:30]} Qb7 {[%emt 0:00:30]} 19. g4 {[%emt 0:00:30]} f6 {[%emt 0:00:30]} 20. f4 {[%emt 0:00:30]} (20. b5 $5 {[%cal Rb5c6]} Bxd5 21. cxd5 $14) 20... e5 {[%emt 0:00:30]} (20... e6 $14) 21. f5 {[%emt 0:00:30]} g5 {[%emt 0:00:30]} 22. Rc3 {[%emt 0:00:30]} Ne8 {[%emt 0:00:30]} 23. Kf2 {[%emt 0:00:30]} Bxd5 {[%emt 0:00:30]} 24. Rxd5 {[%emt 0:00:30]} h6 {[%emt 0:00:30]} 25. Bd1 {[%emt 0:00:30]} Qe7 {[%emt 0:00:30]} 26. Qd2 {[%emt 0:00:30]} (26. Bb3 $18) 26... Rd8 $2 {[%emt 0:00:30]} (26... Nc7 $16) 27. c5 {[%emt 0:00:30]} bxc5 {[%emt 0:00:30]} 28. bxc5 {[%emt 0:00:30]} Rc8 $2 {[%emt 0:00:30]} (28... Qb7 29. Kf3 Rf7) 29. Ba4 {[%emt 0:00:30]} Qc7 {[%emt 0:00:30]} (29... a5 $142 30. c6 Kg7 31. Rxa5 d5 32. Qxd5 Nd6) 30. Rb3 {[%emt 0:00:30]} Rf7 {[%emt 0:00:30]} 31. cxd6 {[%emt 0:00:30]} Nxd6 {[%emt 0:00:30]} 32. Rxd6 {[%emt 0:00:30]} Qc5+ {[%emt 0:00:30]} 33. Kg2 {[%emt 0:00:30]} Qc2 {[%emt 0:00:30]} 34. Rb4 {[%emt 0:00:30]} Qxd2+ $18 {[%emt 0:00:30]} 35. Rxd2 {[%emt 0:00:30]} 1-0